[Event "Stay Safe Play From Home 207"]
[Site "T#646637Emanuel Laske"]
[Date "2020.06.07"]
[Round "2"]
[White "Sfantul321"]
[Black "Bellbox"]
[Result "1-0"]
[WhiteElo "1957"]
[BlackElo "2007"]
[Annotator "NA RC"]
[PlyCount "39"]
[EventDate "2020.06.07"]
[EventType "swiss (blitz)"]
[TimeControl "300"]

1. c4 {[%emt 0:00:01]} f5 {[%emt 0:00:01]} 2. Nc3 {[%emt 0:00:01]} Nf6 {[%emt 0:00:01]} 3. g3 {[%emt 0:00:01]} g6 {[%emt 0:00:01]} 4. Bg2 {[%emt 0:00:00]} Bg7 {[%emt 0:00:01]} 5. e3 {[%emt 0:00:01]} O-O {[%emt 0:00:00]} 6. Nge2 {[%emt 0:00:01]} d6 {[%emt 0:00:01]} 7. O-O {[%emt 0:00:01]} c5 {[%emt 0:00:01]} 8. d3 {[%emt 0:00:01]} Nc6 {[%emt 0:00:01]} 9. a3 {[%emt 0:00:01]} a5 {[%emt 0:00:04]} 10. b3 {[%emt 0:00:02]} e5 {[%emt 0:00:03]} 11. Rb1 {[%emt 0:00:02]} Be6 {[%emt 0:00:01]} 12. Nd5 {[%emt 0:00:02]} e4 {[%emt 0:00:10]} 13. dxe4 {[%emt 0:00:02]} Nxe4 {[%emt 0:00:01]} 14. Nef4 {[%emt 0:00:03]} Bf7 {[%emt 0:00:02]} 15. Bxe4 {[%emt 0:00:03]} fxe4 {[%emt 0:00:01]} 16. Qc2 {[%emt 0:00:01]} Re8 {[%emt 0:00:02]} 17. Bb2 {[%emt 0:00:02]} Bxb2 {[%emt 0:00:22]} 18. Qxb2 {[%emt 0:00:01]} Ne5 {[%emt 0:00:01]} 19. Kg2 {[%emt 0:00:05]} Qd7 {[%emt 0:00:09]} 20. Nf6+ {[%emt 0:00:02] Bellbox resigns (Lag: Av=0.55s, max=1.2s)} 1-0